fUST/lending_fUST_20250909
["ID","MTS","AMOUNT","RATE_DAILY","PERIOD"]
[384419975,1757404232994,-1200.0,0.00013596,2]
[384419976,1757404233003,-424.9703518,0.00013597,2]
[384419983,1757404233258,-40994.53221278,0.00013597,2]
[384419985,1757404233267,-163.46174102,0.00013597,2]
[384419987,1757404233277,-500.0,0.00013597,2]
[384419990,1757404233287,-230.99956276,0.00013597,2]
[384419992,1757404233296,-500.0,0.00013597,2]
[384419994,1757404233305,-189.83362017,0.00013597,2]
[384419996,1757404233314,-500.0,0.00013597,2]
[384419998,1757404233324,-500.0,0.00013597,2]
[384420000,1757404233334,-500.0,0.00013597,2]
[384420002,1757404233343,-500.0,0.00013597,2]
[384420004,1757404233351,-500.0,0.00013597,2]
[384420006,1757404233361,-500.0,0.00013597,2]
[384420007,1757404233370,-500.0,0.00013597,2]
[384420010,1757404233380,-500.0,0.00013597,2]
[384420011,1757404233391,-500.0,0.00013597,2]
[384420013,1757404233401,-205.187048,0.00013597,2]
[384420016,1757404233411,-464.47864727,0.00013597,2]
[384420508,1757404238717,-35.52135273,0.00013597,2]
[384420509,1757404238727,-500.0,0.00013597,2]
[384420510,1757404238737,-500.0,0.00013597,2]
[384420511,1757404238746,-500.0,0.00013597,2]
[384420512,1757404238755,-266.25308594,0.00013597,2]
[384420513,1757404238771,-539.56228516,0.00013597,2]
[384420514,1757404238780,-188.74428614,0.00013597,2]
[384420515,1757404238789,-626.31218288,0.00013597,2]
[384420516,1757404238799,-500.00000001,0.00013597,2]
[384420517,1757404238808,-193.39194223,0.00013597,2]
[384420518,1757404238817,-650.56797388,0.00013597,2]
[384420519,1757404238826,-500.0,0.00013597,2]
[384420520,1757404238840,-988.75847991,0.00013598,2]
[384420521,1757404238851,-268.61921822,0.00013598,2]
[384420607,1757404239816,-6579.09041627,0.00013598,2]
[384420732,1757404243056,-995.91486784,0.00013598,2]
[384420733,1757404243094,521.67717147,0.00028792,60]
[384420736,1757404243996,-3102.653632,0.00013598,2]
[384420758,1757404247043,-6461.76840583,0.00013462,2]
[384420759,1757404247055,-502.0,0.00013462,2]
[384420760,1757404247066,-310.52297896,0.00013462,2]
[384420761,1757404247078,-28062.73835394,0.00013462,2]
[384420762,1757404247087,-14355.21275202,0.00013598,2]
[384420780,1757404482760,20014.61208586,0.00028792,60]
[384420781,1757404527794,153.38377271,0.00013193,2]
[384420782,1757404530552,179.52,0.00012329,2]
[384420783,1757404534760,252.3722779,0.00013093,2]
[384420787,1757404681109,300.0,0.00013193,2]
[384420788,1757404705580,516.34695959,0.00013263,2]
[384420789,1757404720390,160.57800702,0.00024767,30]
[384420790,1757404729926,516.34695959,0.00013263,2]
[384420791,1757404754274,516.34695959,0.00013263,2]
[384420792,1757404778584,516.34695959,0.00013263,2]
[384420797,1757404802040,516.34695959,0.00013263,2]
[384420901,1757405432050,-470.21261488,0.00013397,2]
[384420902,1757405432061,-46.13434471,0.00013397,2]
[384420904,1757405432071,-1025.6536624,0.000134,2]
[384420906,1757405432081,-1025.65366236,0.0001345,2]
[384420908,1757405432090,-1200.0,0.00013472,2]
[384420910,1757405432100,-500.0,0.00013473,2]
[384420912,1757405432109,-500.0,0.00013473,2]
[384420914,1757405432118,-223.05433932,0.00013473,2]
[384420916,1757405432129,-1200.0,0.00013496,2]
[384420919,1757405432138,-18317.27389861,0.00013497,2]
[384420963,1757405439065,-6408.80247874,0.00013497,2]
[384420964,1757405439076,-505.69647612,0.00013497,2]
[384420965,1757405439088,-434.60648948,0.00013497,2]
[384421055,1757405440518,-500.0,0.00013496,2]
[384421057,1757405440530,-500.0,0.00013496,2]
[384421059,1757405440539,-500.0,0.00013496,2]
[384421061,1757405440548,-500.0,0.00013496,2]
[384421063,1757405440557,-265.46555606,0.00013496,2]
[384421065,1757405440568,-500.0,0.00013496,2]
[384421067,1757405440577,-500.0,0.00013496,2]
[384421069,1757405440586,-500.0,0.00013496,2]
[384421071,1757405440596,-500.0,0.00013496,2]
[384421073,1757405440605,-500.0,0.00013496,2]
[384421075,1757405440614,-500.0,0.00013496,2]
[384421077,1757405440623,-184.96377935,0.00013496,2]
[384421079,1757405440632,-500.0,0.00013496,2]
[384421080,1757405440641,-500.0,0.00013496,2]
[384421082,1757405440650,-500.0,0.00013496,2]
[384421084,1757405440659,-500.0,0.00013496,2]
[384421086,1757405440670,-500.0,0.00013496,2]
[384421088,1757405440679,-570.5187048,0.00013496,2]
[384421090,1757405440689,-500.0,0.00013496,2]
[384421092,1757405440698,-500.0,0.00013496,2]
[384421094,1757405440707,-500.0,0.00013496,2]
[384421096,1757405440716,-500.0,0.00013496,2]
[384421098,1757405440726,-500.0,0.00013496,2]
[384421100,1757405440735,-500.0,0.00013496,2]
[384421102,1757405440745,-500.0,0.00013496,2]
[384421104,1757405440754,-500.0,0.00013496,2]
[384421106,1757405440764,-500.0,0.00013496,2]
[384421108,1757405440773,-500.0,0.00013496,2]
[384421110,1757405440783,-500.0,0.00013496,2]
[384421112,1757405440792,-500.0,0.00013496,2]
[384421114,1757405440802,-500.0,0.00013496,2]
[384421116,1757405440811,-24333.62065705,0.00013497,2]
[384421118,1757405440821,-613.68562951,0.00013497,2]
[384421120,1757405440830,-85525.2200858,0.00013498,2]
[384421255,1757405442442,-0.002277,0.00013498,2]
[384421320,1757405443043,-476.48659396,0.00013498,2]
[384421337,1757405443202,-923.51340604,0.00013498,2]
[384423881,1757405657076,300.0,0.00013229,2]
[384423882,1757405680186,35.06560605,0.00013263,2]
[384423883,1757405680210,264.93439395,0.00013263,2]
[384423885,1757405704023,3379.98464902,0.00013263,2]
[384423886,1757405736862,238.69788809,0.00012996,2]
[384423890,1757405886144,6116.39306894,0.00012597,2]
[384423891,1757405886168,10000.01,0.00012597,2]
[384423892,1757405886192,10000.01,0.00012597,2]
[384423893,1757405886213,9758.18509306,0.00012597,2]
[384423894,1757405948688,241.82490694,0.00013262,2]
[384423895,1757405948713,74.72639947,0.00013262,2]
[384423896,1757405956694,183.34281699,0.00013262,2]
[384423897,1757405965265,183.34281699,0.00013262,2]
[384423898,1757406091593,6007.66830884,0.00028802,60]
[384423901,1757406167141,-400.0,0.0001885,26]
[384423915,1757406178859,183.34281699,0.00013255,2]
[384423916,1757406183044,-1000.0,0.00018595,20]
[384423917,1757406187135,183.34281699,0.00013255,2]
[384423928,1757406412073,183.34281699,0.00013164,2]
[384423929,1757406420105,183.34281699,0.00013164,2]
[384423930,1757406428447,183.34281699,0.00013164,2]
[384423944,1757406609774,183.34281699,0.00013164,2]
[384423945,1757406618324,183.34281699,0.00013164,2]
[384423946,1757406626509,183.34281699,0.00013164,2]
[384423978,1757406637363,-624.58926964,0.00013297,2]
[384423979,1757406637373,-514.21207294,0.00013388,2]
[384423980,1757406637418,-471.78792706,0.00013388,2]
[384423981,1757406637427,-1200.0,0.00013389,2]
[384423982,1757406637437,-300.0,0.00013389,2]
[384423983,1757406637446,-92.29050788,0.00013389,2]
[384424010,1757406638051,-207.70949212,0.00013389,2]
[384424011,1757406638061,-300.0,0.00013389,2]
[384424012,1757406638070,-151.0,0.0001339,2]
[384424013,1757406638080,-151.0,0.0001339,2]
[384424014,1757406638090,-151.0,0.0001339,2]
[384424015,1757406638099,-151.0,0.0001339,2]
[384424016,1757406638109,-151.0,0.0001339,2]
[384424017,1757406638119,-151.0,0.0001339,2]
[384424018,1757406638128,-151.0,0.0001339,2]
[384424019,1757406638138,-151.0,0.0001339,2]
[384424020,1757406638148,-154.77611118,0.0001339,2]
[384424021,1757406638157,-151.0,0.0001339,2]
[384424022,1757406638167,-151.0,0.0001339,2]
[384424023,1757406638176,-151.0,0.0001339,2]
[384424024,1757406638186,-151.0,0.0001339,2]
[384424025,1757406638195,-151.0,0.0001339,2]
[384424026,1757406638205,-250.0,0.0001339,2]
[384424027,1757406638215,-151.0,0.0001339,2]
[384424028,1757406638225,-151.0,0.0001339,2]
[384424029,1757406638234,-295.14588467,0.0001339,2]
[384424030,1757406638243,-151.0,0.0001339,2]
[384424031,1757406638254,-151.0,0.0001339,2]
[384424032,1757406638263,-151.0,0.0001339,2]
[384424033,1757406638272,-151.0,0.0001339,2]
[384424034,1757406638282,-151.0,0.0001339,2]
[384424035,1757406638291,-151.0,0.0001339,2]
[384424036,1757406638300,-151.0,0.0001339,2]
[384424037,1757406638310,-151.0,0.0001339,2]
[384424038,1757406638319,-151.0,0.0001339,2]
[384424039,1757406638328,-151.0,0.0001339,2]
[384424040,1757406638338,-151.0,0.0001339,2]
[384424041,1757406638347,-151.0,0.0001339,2]
[384424042,1757406638357,-151.0,0.0001339,2]
[384424043,1757406638366,-151.0,0.0001339,2]
[384424044,1757406638376,-151.0,0.0001339,2]
[384424045,1757406638385,-151.0,0.0001339,2]
[384424046,1757406638394,-151.0,0.0001339,2]
[384424047,1757406638404,-754.32273525,0.00013397,2]
[384424048,1757406638413,-500.0,0.00013397,2]
[384424049,1757406638422,-500.0,0.00013397,2]
[384424050,1757406638433,-471.15566915,0.00013397,2]
[384424051,1757406638443,-242.77375326,0.00013397,2]
[384424052,1757406638452,-500.0,0.00013397,2]
[384424053,1757406638462,-500.0,0.00013397,2]
[384424054,1757406638471,-500.0,0.00013397,2]
[384424055,1757406638480,-500.0,0.00013397,2]
[384424056,1757406638489,-500.0,0.00013397,2]
[384424057,1757406638499,-500.0,0.00013397,2]
[384424058,1757406638508,-252.94117236,0.00013397,2]
[384424059,1757406638520,-247.05882764,0.00013397,2]
[384424060,1757406638529,-500.0,0.00013397,2]
[384424061,1757406638538,-500.0,0.00013397,2]
[384424062,1757406638547,-500.0,0.00013397,2]
[384424063,1757406638557,-500.0,0.00013397,2]
[384424064,1757406638566,-500.0,0.00013397,2]
[384424065,1757406638577,-500.0,0.00013397,2]
[384424066,1757406638586,-500.0,0.00013397,2]
[384424067,1757406638595,-500.0,0.00013397,2]
[384424068,1757406638605,-500.0,0.00013397,2]
[384424069,1757406638614,-500.0,0.00013397,2]
[384424070,1757406638623,-649.1119792,0.00013397,2]
[384424071,1757406638632,-500.0,0.00013397,2]
[384424072,1757406638642,-500.0,0.00013397,2]
[384424073,1757406638652,-500.0,0.00013397,2]
[384424074,1757406638661,-500.0,0.00013397,2]
[384424075,1757406638671,-500.0,0.00013397,2]
[384424076,1757406638680,-500.0,0.00013397,2]
[384424077,1757406638690,-500.0,0.00013397,2]
[384424078,1757406638699,-500.0,0.00013397,2]
[384424079,1757406638708,-500.0,0.00013397,2]
[384424080,1757406638718,-500.0,0.00013397,2]
[384424081,1757406638728,-500.0,0.00013397,2]
[384424082,1757406638737,-329.91550116,0.00013397,2]
[384424083,1757406638746,-18173.11757301,0.00013398,2]
[384424084,1757406638787,-266.8,0.00013398,2]
[384424085,1757406638798,-2173.85181483,0.00013398,2]
[384424086,1757406638809,-1401.21430455,0.00013398,2]
[384424130,1757406640241,-12945.99048777,0.00013398,2]
[384424133,1757406640252,-2870.30506946,0.00013398,2]
[384424141,1757406640327,-359.99275684,0.00013398,2]
[384424340,1757406642436,202.4689611,0.00013264,2]
[384424430,1757406643265,-6205.09742232,0.00013398,2]
[384424754,1757406646298,-6725.51065213,0.00013398,2]
[384424756,1757406646309,-3038.2236968,0.00013398,2]
[384424760,1757406646511,-10516.684434,0.00013398,2]
[384425857,1757406657734,202.4689611,0.00013264,2]
[384425872,1757406673383,1005.38794104,0.00013263,2]
[384425873,1757406681419,1162.38794104,0.00013263,2]
[384425874,1757406697019,1162.38794104,0.00013263,2]
[384425875,1757406706074,1162.38794104,0.00013263,2]
[384425878,1757406721857,232.51430424,0.00013263,2]
[384425879,1757406729904,300.0,0.00013262,2]
[384425880,1757406754874,1500.0,0.00013262,2]
[384425881,1757406778562,1161.85144003,0.00013262,2]
[384425882,1757406778584,338.14855997,0.00013262,2]
[384425883,1757406801992,1200.0,0.00013262,2]
[384425884,1757406825590,178.91612241,0.00013262,2]
[384425887,1757406895061,1156.96848317,0.00013262,2]
[384425891,1757406938196,224.20631729,0.00012899,2]
[384425893,1757407088514,1156.96848317,0.00013163,2]
[384425894,1757407094070,208.18657147,0.00012916,2]
[384425895,1757407096972,831.91353958,0.00012916,2]
[384425896,1757407269960,4704.70192294,0.00013,2]
[384425897,1757407269981,8675.45447599,0.00013,2]
[384425898,1757407281175,153.38377271,0.00013162,2]
[384425900,1757407362674,151.22808,0.00024,30]
[384425912,1757407484522,761.49,0.00012329,2]
[384425913,1757407509791,166.29992779,0.00012916,2]
[384425914,1757407685065,1087.82440413,0.00013157,2]
[384425915,1757407697931,278.70830214,0.00012916,2]
[384425922,1757407778285,-314.77794439,0.00013197,2]
[384425923,1757407785246,4033.0,0.000123,2]
[384425925,1757407808911,-237.27191631,0.00013197,2]
[384425926,1757407820598,4027.0,0.000131,2]
[384425993,1757407836869,-66.46526107,0.00013197,2]
[384425994,1757407836879,-388.57205205,0.000132,2]
[384425995,1757407836891,-3638.42794795,0.000132,2]
[384425996,1757407836900,-2030.296672,0.0001329,2]
[384425997,1757407836910,-300.0,0.00013295,2]
[384425998,1757407836919,-300.0,0.00013295,2]
[384425999,1757407836929,-300.0,0.00013295,2]
[384426000,1757407836938,-300.0,0.00013295,2]
[384426001,1757407836947,-1200.0,0.00013295,2]
[384426002,1757407836957,-1200.0,0.00013296,2]
[384426003,1757407836966,-5837.39997563,0.00013297,2]
[384426004,1757407837006,-20051.58305544,0.00013297,2]
[384426005,1757407837016,-558.55579781,0.00013297,2]
[384426006,1757407837025,-500.0,0.00013297,2]
[384426007,1757407837034,-500.0,0.00013297,2]
[384426008,1757407837044,-500.0,0.00013297,2]
[384426009,1757407837053,-268.23400196,0.00013297,2]
[384426010,1757407837063,-500.0,0.00013297,2]
[384426011,1757407837072,-500.0,0.00013297,2]
[384426012,1757407837081,-500.0,0.00013297,2]
[384426013,1757407837091,-500.0,0.00013297,2]
[384426014,1757407837101,-88.16863666,0.00013297,2]
[384426015,1757407837112,-411.83136334,0.00013297,2]
[384426016,1757407837121,-500.0,0.00013297,2]
[384426017,1757407837130,-216.76863666,0.00013297,2]
[384426033,1757407838299,-283.23136334,0.00013297,2]
[384426035,1757407838308,-138.90081924,0.00013297,2]
[384426282,1757407840665,-361.09918076,0.00013297,2]
[384426285,1757407840678,-500.0,0.00013297,2]
[384426287,1757407840692,-500.0,0.00013297,2]
[384426289,1757407840706,-500.0,0.00013297,2]
[384426292,1757407840719,-117.05882298,0.00013297,2]
[384426296,1757407840744,-382.94117702,0.00013297,2]
[384426299,1757407840759,-500.0,0.00013297,2]
[384426301,1757407840771,-500.0,0.00013297,2]
[384426304,1757407840783,-86210.66133757,0.00013298,2]
[384426306,1757407840796,-335.58680926,0.00013345,2]
[384426308,1757407840808,-157.0,0.00013397,2]
[384426311,1757407840820,-2122.8021874,0.00013398,2]
[384426313,1757407840834,-2624.747784,0.00013398,2]
[384426315,1757407840846,-6110.5233717,0.00013398,2]
[384426318,1757407840860,-292.5185859,0.00013398,2]
[384426320,1757407840870,-168.0,0.00013446,2]
[384426322,1757407840880,-688.72932422,0.00013498,2]
[384426324,1757407840892,-500.0,0.000135,2]
[384426326,1757407840903,-168.0,0.00013513,2]
[384426329,1757407840915,-1147.8810482,0.00013541,2]
[384426331,1757407840927,-565.95853129,0.00013581,2]
[384426333,1757407840940,-688.72932421,0.00013583,2]
[384426336,1757407840952,-151.0,0.00013598,2]
[384426338,1757407840965,-151.0,0.00013598,2]
[384426341,1757407840977,-151.0,0.00013598,2]
[384426343,1757407840990,-151.829163,0.00013598,2]
[384426345,1757407841004,-151.0,0.00013598,2]
[384426348,1757407841015,-151.0,0.00013598,2]
[384426350,1757407841025,-151.0,0.00013598,2]
[384426352,1757407841036,-151.0,0.00013598,2]
[384426354,1757407841047,-151.0,0.00013598,2]
[384426356,1757407841059,-151.0,0.00013598,2]
[384426359,1757407841073,-152.853496,0.00013598,2]
[384426361,1757407841086,-153.533284,0.00013598,2]
[384426364,1757407841097,-299.339111,0.00013598,2]
[384426366,1757407841107,-153.624784,0.00013598,2]
[384426368,1757407841118,-152.117313,0.00013598,2]
[384426370,1757407841131,-151.0,0.00013598,2]
[384426372,1757407841142,-157.0,0.00013598,2]
[384426375,1757407841153,-500.0,0.00013598,2]
[384426377,1757407841164,-151.0,0.00013598,2]
[384426379,1757407841174,-157.0,0.00013598,2]
[384426381,1757407841186,-157.0,0.00013598,2]
[384426383,1757407841197,-203.37470124,0.00013598,2]
[384426386,1757407841211,-151.0,0.00013598,2]
[384426388,1757407841223,-157.0,0.00013598,2]
[384426390,1757407841234,-617.0,0.00013598,2]
[384426393,1757407841245,-157.0,0.00013598,2]
[384426395,1757407841257,-3884.06992051,0.00013598,2]
[384426398,1757407841269,-157.0,0.00013598,2]
[384426403,1757407841280,-151.895683,0.00013598,2]
[384426405,1757407841291,-151.0,0.00013598,2]
[384426407,1757407841302,-151.0,0.00013598,2]
[384426409,1757407841313,-153.278122,0.00013598,2]
[384426411,1757407841324,-151.0,0.00013598,2]
[384426413,1757407841334,-219.051261,0.00013598,2]
[384426415,1757407841345,-151.0,0.00013598,2]
[384426418,1757407841356,-213.277159,0.00013598,2]
[384426420,1757407841367,-500.0,0.00013598,2]
[384426422,1757407841378,-500.0,0.00013598,2]
[384426424,1757407841389,-157.0,0.00013598,2]
[384426426,1757407841400,-157.0,0.00013598,2]
[384426428,1757407841411,-157.0,0.00013598,2]
[384426429,1757407841424,-151.0,0.00013598,2]
[384426430,1757407841438,-151.0,0.00013598,2]
[384426431,1757407841449,-151.0,0.00013598,2]
[384426432,1757407841460,-976.0,0.00013599,2]
[384426433,1757407841471,-2154.0,0.00013599,2]
[384426434,1757407841482,-718.729,0.00013599,2]
[384426435,1757407841493,-500.0,0.00013599,2]
[384426436,1757407841505,-151.0,0.00013599,2]
[384426437,1757407841516,-205.38794104,0.00013599,2]
[384426438,1757407841528,-500.0,0.00013599,2]
[384426439,1757407841542,-216.68307376,0.00013599,2]
[384426440,1757407841553,-151.0,0.00013599,2]
[384426441,1757407841564,-151.0,0.00013599,2]
[384426442,1757407841576,-151.0,0.00013599,2]
[384426443,1757407841588,-151.0,0.00013599,2]
[384426444,1757407841599,-4027.0,0.00013599,2]
[384426445,1757407841610,-168.799512,0.00013599,2]
[384426446,1757407841621,-151.0,0.00013599,2]
[384426448,1757407841633,-151.0,0.00013599,2]
[384426450,1757407841644,-174.143868,0.00013599,2]
[384426452,1757407841655,-153.365457,0.00013599,2]
[384426454,1757407841666,-151.0,0.00013599,2]
[384426457,1757407841678,-505.58697896,0.000136,2]
[384426459,1757407841690,-168.0,0.00013608,2]
[384426461,1757407841701,-155.496293,0.00013621,2]
[384426463,1757407841712,-151.0,0.00013622,2]
[384426465,1757407841723,-151.0,0.00013622,2]
[384426467,1757407841734,-2062.79601225,0.00013622,2]
[384426469,1757407841745,-151.0,0.00013623,2]
[384426472,1757407841756,-203.28455737,0.00013623,2]
[384426474,1757407841767,-846.80158213,0.00013623,2]
[384426476,1757407841778,-233.05759179,0.00013623,2]
[384426478,1757407841789,-417.15472785,0.00013623,2]
[384426480,1757407841800,-160.0,0.00013623,2]
[384426482,1757407841811,-217.65034598,0.00013623,2]
[384426484,1757407841822,-530.79566296,0.00013623,2]
[384426486,1757407841833,-160.0,0.00013623,2]
[384426489,1757407841844,-309.041,0.00013635,2]
[384426491,1757407841855,-151.0,0.0001366,2]
[384426493,1757407841866,-168.0,0.0001366,2]
[384426495,1757407841877,-688.72932421,0.00013667,2]
[384426497,1757407841889,-157.0,0.00013671,2]
[384426499,1757407841899,-155.84395,0.00013671,2]
[384426501,1757407841910,-151.0,0.00013671,2]
[384426503,1757407841922,-157.870771,0.00013671,2]
[384426505,1757407841933,-500.0,0.00013673,2]
[384426507,1757407841944,-500.0,0.00013673,2]
[384426509,1757407841955,-500.0,0.00013673,2]
[384426512,1757407841966,-506.61713057,0.00013673,2]
[384426514,1757407841979,-500.0,0.00013673,2]
[384426516,1757407841992,-500.0,0.00013673,2]
[384426518,1757407842003,-500.0,0.00013673,2]
[384426520,1757407842014,-501.85941466,0.00013673,2]
[384426522,1757407842025,-56706.70884857,0.00013696,2]
[384426524,1757407842036,-153.215581,0.00013696,2]
[384426526,1757407842047,-162.22799,0.00013696,2]
[384426529,1757407842058,-151.0,0.00013696,2]
[384426531,1757407842069,-151.0,0.00013696,2]
[384426533,1757407842080,-151.0,0.00013696,2]
[384426535,1757407842091,-151.0,0.00013696,2]
[384426537,1757407842103,-267.106642,0.00013696,2]
[384426539,1757407842114,-151.0,0.00013696,2]
[384426541,1757407842124,-151.0,0.00013696,2]
[384426543,1757407842133,-151.0,0.00013696,2]
[384426545,1757407842143,-289.4375886,0.00013698,2]
[384426547,1757407842153,-483.79287691,0.00013698,2]
[384426549,1757407842162,-480.0,0.00013698,2]
[384426572,1757407842371,-480.0,0.00013698,2]
[384426575,1757407842391,-480.96517909,0.00013698,2]
[384426577,1757407842404,-480.0,0.00013698,2]
[384426579,1757407842414,-480.0,0.00013698,2]
[384426581,1757407842424,-485.12697769,0.00013698,2]
[384426583,1757407842433,-480.0,0.00013698,2]
[384426585,1757407842446,-485.79393001,0.00013698,2]
[384426587,1757407842455,-521.3839302,0.00013698,2]
[384426589,1757407842465,-480.0,0.00013698,2]
[384426591,1757407842475,-480.0,0.00013698,2]
[384426593,1757407842484,-480.0,0.00013698,2]
[384426595,1757407842494,-480.0,0.00013698,2]
[384426597,1757407842504,-480.0,0.00013698,2]
[384426599,1757407842514,-483.70607168,0.00013698,2]
[384426600,1757407842524,-369.60791477,0.00013698,2]
[384426603,1757407842535,-480.0,0.00013698,2]
[384426605,1757407842547,-480.0,0.00013698,2]
[384426606,1757407842557,-481.74542209,0.00013698,2]
[384426608,1757407842566,-480.0,0.00013698,2]
[384426610,1757407842575,-480.0,0.00013698,2]
[384426612,1757407842585,-480.0,0.00013698,2]
[384426614,1757407842595,-480.0,0.00013698,2]
[384426616,1757407842605,-480.0,0.00013698,2]
[384426619,1757407842618,-480.0,0.00013698,2]
[384426621,1757407842628,-480.0,0.00013698,2]
[384426623,1757407842638,-480.0,0.00013698,2]
[384426625,1757407842648,-480.0,0.00013698,2]
[384426627,1757407842658,-531.13852828,0.00013698,2]
[384426629,1757407842667,-480.0,0.00013698,2]
[384426631,1757407842677,-480.0,0.00013698,2]
[384426633,1757407842689,-485.93949125,0.00013698,2]
[384426635,1757407842698,-599.19,0.00013698,2]
[384426637,1757407842707,-480.0,0.00013698,2]
[384426639,1757407842718,-480.0,0.00013698,2]
[384426641,1757407842727,-480.0,0.00013698,2]
[384426644,1757407842737,-480.0,0.00013698,2]
[384426645,1757407842746,-480.0,0.00013698,2]
[384426648,1757407842756,-480.0,0.00013698,2]
[384426650,1757407842765,-482.83713647,0.00013698,2]
[384426653,1757407842774,-480.0,0.00013698,2]
[384426656,1757407842784,-480.0,0.00013698,2]
[384426658,1757407842793,-480.0,0.00013698,2]
[384426660,1757407842802,-481.26164314,0.00013698,2]
[384426662,1757407842812,-500.0,0.00013698,2]
[384426664,1757407842821,-500.0,0.00013698,2]
[384426665,1757407842831,-446.58561573,0.00013698,2]
[384426667,1757407842840,-480.0,0.00013698,2]
[384426669,1757407842850,-480.0,0.00013698,2]
[384426671,1757407842859,-480.0,0.00013698,2]
[384426673,1757407842869,-480.0,0.00013698,2]
[384426675,1757407842879,-480.0,0.00013698,2]
[384426677,1757407842889,-562.7850367,0.00013698,2]
[384426679,1757407842899,-480.0,0.00013698,2]
[384426681,1757407842908,-480.0,0.00013698,2]
[384426683,1757407842918,-483.25347614,0.00013698,2]
[384426685,1757407842928,-480.0,0.00013698,2]
[384426687,1757407842938,-481.56733637,0.00013698,2]
[384426689,1757407842948,-480.0,0.00013698,2]
[384426691,1757407842958,-485.34736645,0.00013698,2]
[384426692,1757407842967,-480.0,0.00013698,2]
[384426694,1757407842977,-482.57462734,0.00013698,2]
[384426696,1757407842986,-481.64264598,0.00013698,2]
[384426698,1757407842996,-480.0,0.00013698,2]
[384426700,1757407843005,-481.25073779,0.00013698,2]
[384426702,1757407843015,-480.0,0.00013698,2]
[384426704,1757407843024,-480.0,0.00013698,2]
[384426706,1757407843033,-480.0,0.00013698,2]
[384426708,1757407843042,-480.0,0.00013698,2]
[384426710,1757407843052,-480.0,0.00013698,2]
[384426712,1757407843061,-480.0,0.00013698,2]
[384426714,1757407843071,-480.0,0.00013698,2]
[384426716,1757407843080,-1004.92746409,0.00013698,2]
[384426718,1757407843090,-480.0,0.00013698,2]
[384426719,1757407843099,-481.57450116,0.00013698,2]
[384426721,1757407843108,-480.0,0.00013698,2]
[384426723,1757407843117,-494.16,0.00013698,2]
[384426725,1757407843127,-298.63563007,0.00013698,2]
[384426727,1757407843136,-480.0,0.00013698,2]
[384426729,1757407843146,-480.0,0.00013698,2]
[384426731,1757407843155,-480.0,0.00013698,2]
[384426733,1757407843165,-480.0,0.00013698,2]
[384426735,1757407843174,-480.0,0.00013698,2]
[384426737,1757407843183,-480.0,0.00013698,2]
[384426739,1757407843193,-480.0,0.00013698,2]
[384426741,1757407843203,-480.0,0.00013698,2]
[384426743,1757407843211,-480.0,0.00013698,2]
[384426745,1757407843220,-480.0,0.00013698,2]
[384426747,1757407843230,-480.0,0.00013698,2]
[384426749,1757407843239,-480.0,0.00013698,2]
[384426751,1757407843248,-480.0,0.00013698,2]
[384426753,1757407843257,-480.0,0.00013698,2]
[384426755,1757407843267,-480.0,0.00013698,2]
[384426757,1757407843276,-480.0,0.00013698,2]
[384426759,1757407843285,-665.18,0.00013698,2]
[384426761,1757407843295,-481.97630846,0.00013698,2]
[384426763,1757407843304,-539.59123498,0.00013698,2]